Cogmind - Beta 13 @@@ ROGUE MODE // 2024.04.03 @ 11:04:14 Player: Yeast Cone Result: Self-destructed Performance ------------- Evolutions (4) 2000 Regions Visited (6) 1200 Robots Destroyed (68) 340 Value Destroyed (2259) 2259 Prototype IDs (2) 40 Alien Tech Used (0) 0 Bonus (544) 544 TOTAL SCORE: 6383 Bonus ------- High Alert Combat Kills 44 Entered DSFs 500 Cogmind --------- Core Integrity 587/850 Matter 26/300 Energy 94/140 System Corruption 0% Temperature Cool (0) Movement Core (100) Ox1 Location -6/DSF Parts ------- > --- POWER (1) -------- Light Deuterium Engine > --- PROPULSION (4) --- (None) > --- UTILITY (6) ------ (None) > --- WEAPON (4) ------- (None) > --- INVENTORY (5) ---- Light Nuclear Core Small Storage Unit Peak State ------------ > --- POWER ------------ Micro Nuclear Core > --- PROPULSION ------- Improved Aluminum Leg Carbon-fiber Leg Carbon-fiber Leg Carbon-fiber Leg > --- UTILITY ---------- Advanced Visual Processing Unit Targeting Computer Weapon Cycler Hardened Light Armor Plating Hardened Light Armor Plating > --- WEAPON ----------- Assault Cannon Assault Cannon Assault Cannon > --- INVENTORY -------- Light Nuclear Core Small Storage Unit High-powered Shotgun [Rating: 36] Favorites ----------- Power Ion Engine Engine Ion Engine Power Core Micro Nuclear Core Propulsion Aluminum Leg Leg Aluminum Leg Utility Transport Network Coupler Device Weapon Cycler Processor Transport Network Coupler Hackware Makeshift System Shield Protection Hardened Light Armor Plating Weapon Assault Cannon Energy Gun Particle Gun Energy Cannon Beam Cannon Ballistic Gun Assault Rifle Ballistic Cannon Assault Cannon Launcher Heavy Rocket Launcher Build | -11 -10 -10 -8 -7 -6 -6 ------- Run | Yrd Mat Sub Mat Fac Fac DSF Slots Evolved 8 | . . . 4 2 2 . Power . | . . . . . . . Propulsion 2 | . . . 2 . . . Utility 4 | . . . 1 2 1 . Weapon 2 | . . . 1 . 1 . Parts Attached 62 | 5 10 3 29 13 1 1 Power 9 | 1 . 1 4 2 . 1 Engine 6 | 1 . 1 3 . . 1 Core 3 | . . . 1 2 . . Reactor . | . . . . . . . Propulsion 16 | 2 4 . 6 3 1 . Treads . | . . . . . . . Leg 16 | 2 4 . 6 3 1 . Wheel . | . . . . . . . Hover . | . . . . . . . Flight . | . . . . . . . Utility 13 | . 4 1 2 6 . . Device 4 | . 3 . . 1 . . Storage . | . . . . . . . Processor 5 | . 1 . 1 3 . . Hackware 1 | . . 1 . . . . Protection 3 | . . . 1 2 . . Artifact . | . . . . . . . Weapon 24 | 2 2 1 17 2 . . Energy Gun 3 | . 1 . 2 . . . Energy Cannon 4 | . 1 . 3 . . . Ballistic Gun 8 | 2 . 1 4 1 . . Ballistic Cannon 5 | . . . 4 1 . . Launcher 4 | . . . 4 . . . Special Weapon . | . . . . . . . Impact Weapon . | . . . . . . . Slashing Weapon . | . . . . . . . Piercing Weapon . | . . . . . . . Special Melee Weapon . | . . . . . . . Unidentified Prototypes 2 | . . . 2 . . . Parts Lost 23 | . 1 2 5 6 . 9 Power 3 | . . . 2 . . 1 Propulsion 8 | . 1 2 . 2 . 3 Utility 6 | . . . 1 2 . 3 Weapon 6 | . . . 2 2 . 2 Highest Loss Streak 9 | . 1 1 2 2 . 9 To Critical Strikes . | . . . . . . . Average Slot Usage (%) 84 | . 90 89 73 97 55 47 Engine 7 | . 14 14 7 1 . . Core 2 | . . . . 5 6 3 Leg 22 | . 27 18 17 29 15 16 Device 4 | . 13 4 . 4 6 5 Processor 12 | . 6 14 11 15 13 10 Hackware 5 | . . 9 9 2 . . Protection 4 | . . . 2 13 . . Energy Gun 2 | . 3 6 . . . . Energy Cannon 5 | . 2 14 5 . . . Ballistic Gun 8 | . 22 7 9 . 6 5 Ballistic Cannon 6 | . . . 2 21 6 4 Launcher 2 | . . . 6 . . . Naked Turns . | . . . . . . . Heaviest Build 32 | 9 12 12 24 32 15 15 Greatest Support 58 | 20 20 20 48 58 33 33 Greatest Overweight (x) 7 | . . 3 7 1 . . Average Overweight (x) . | . . . 1 . . . Largest Inventory Capacity 5 | 5 5 5 5 5 5 5 Average Capacity 5 | 5 5 5 5 5 5 5 Most Carried 5 | 3 5 5 5 4 4 3 Average Carried 3 | 1 3 3 4 3 2 2 Final Capacity 5 | 5 5 5 5 5 5 5 Final Carried 5 | 2 3 4 5 2 3 2 Class Distribution -------------------- 48% | Mutant 20% | Tank 10% | Skirmisher 9% | Scavenger-Gunner 7% | Scavenger-Tank 4% | Scavenger-Skirmisher Dominant Class ---------------- Mutant | -10/Materials Mutant | -10/Subcaves Skirmisher | -8/Materials Tank | -7/Factory Mutant | -6/Factory Mutant | -6/DSF Resources | -11 -10 -10 -8 -7 -6 -6 ----------- Run | Yrd Mat Sub Mat Fac Fac DSF Matter Collected 1861 | 240 261 47 792 518 . 3 Remotely . | . . . . . . . Salvage Created 2254 | . 363 240 1210 441 . . Parts 125 | . 19 17 66 23 . . Haulers Intercepted . | . . . . . . . Recyclers Shooed 2 | . 1 . 1 . . . Parts Field Recycled . | . . . . . . . Retrieved Matter . | . . . . . . . Parts Self-Destructed 13 | . . 13 . . . . Prevented . | . . . . . . . Kills | -11 -10 -10 -8 -7 -6 -6 ------- Run | Yrd Mat Sub Mat Fac Fac DSF Combat Hostiles Destroyed 51 | . 7 8 24 12 . . Guns 19 | . 7 3 9 . . . Cannons 25 | . . 5 8 12 . . AOE 7 | . . . 7 . . . Classes Destroyed 13 | . 3 3 6 1 . . Worker 5 | . 1 . 3 1 . . Builder 2 | . . . 2 . . . Recycler 4 | . . . 2 2 . . Operator 2 | . . . 1 1 . . Watcher 4 | . 1 . 2 1 . . Swarmer 9 | . . 4 2 3 . . Grunt 26 | . 7 1 13 5 . . Brawler 3 | . . . 3 . . . Duelist 2 | . . . 2 . . . Sentry 5 | . . 1 3 1 . . Hunter 2 | . . . 1 1 . . Programmer 2 | . . . . 2 . . Subdweller 2 | . . 2 . . . . Best Kill Streak 6 | . 4 6 6 4 . . Combat Bots Only 6 | . 3 6 5 3 . . Max Kills in Single Turn 2 | . 1 2 2 2 . . Gunslinging . | . . . . . . . Exploded 1 | . . . 1 . . . Melee . | . . . . . . . Uniques/NPCs Destroyed . | . . . . . . . Combat | -11 -10 -10 -8 -7 -6 -6 -------- Run | Yrd Mat Sub Mat Fac Fac DSF Hostile Shots Fired 416 | . 42 52 122 167 . 33 Missed 149 | . 13 11 38 76 . 11 Damage Taken 3868 | . 332 482 1221 1090 . 743 Core 757 | . 34 166 158 136 . 263 Absorbed by Shields . | . . . . . . . Ignored by Resistances 21 | . . . 21 . . . Core Remaining (%) 67 | 100 . 20 71 80 . . Volleys Fired 165 | . 26 19 74 43 . 3 Largest 3 | . 2 2 3 3 . 1 Hottest 146 | . 40 125 146 132 . 25 Shots Fired 365 | . 52 38 155 117 . 3 Gun 170 | . 52 19 95 1 . 3 Cannon 179 | . . 19 44 116 . . Launcher 16 | . . . 16 . . . Special . | . . . . . . . Kinetic 283 | . 52 9 102 117 . 3 Thermal 45 | . . 29 16 . . . Explosive 16 | . . . 16 . . . Electromagnetic 21 | . . . 21 . . . Robot Hit Streak 11 | . 6 8 11 10 . 1 Robot Miss Streak 8 | . 2 4 3 8 . 1 Penetration Max 1 | . . . 1 . . . Secondary Targets 3 | . 2 . 1 . . . Max Gunslinging Chain 1 | . 1 . 1 . . . Shots Hit Robots 205 | . 30 23 89 62 . 1 Core Hits 112 | . 18 11 55 27 . 1 Critical Kills . | . . . . . . . Critical Parts Destroyed 2 | . 2 . . . . . Critical Strikes 5 | . 2 . . 3 . . Destroy 2 | . 2 . . . . . Blast 3 | . . . . 3 . . Melee Attacks . | . . . . . . . Impact . | . . . . . . . Slashing . | . . . . . . . Piercing . | . . . . . . . Sneak Attacks . | . . . . . . . Combat Hostiles . | . . . . . . . Follow-up Attacks . | . . . . . . . Damage Inflicted 5641 | . 412 380 3265 1540 . 44 Guns 1752 | . 412 168 1099 29 . 44 Cannons 2267 | . . 212 550 1505 . . Explosions 1616 | . . . 1616 . . . Melee . | . . . . . . . Ramming 6 | . . . . 6 . . Kinetic 3284 | . 412 77 1217 1534 . 44 Thermal 538 | . . 303 235 . . . Explosive 1555 | . . . 1555 . . . Electromagnetic 258 | . . . 258 . . . Impact . | . . . . . . . Slashing . | . . . . . . . Piercing . | . . . . . . . Highest Corruption 1 | . . . . 1 . . Average Corruption 1 | . . . . 1 . . Corruption Purged . | . . . . . . . Corruption Blocked . | . . . . . . . Effects 2 | . . . . 2 . . Matter Fused 1 | . . . . 1 . . Data Loss (major) 1 | . . . . 1 . . Overload Shots . | . . . . . . . Overflow Damage 157 | . . 10 147 . . . Projectiles 10 | . . 10 . . . . Explosions 147 | . . . 147 . . . Melee . | . . . . . . . Knockbacks 9 | . . . . 9 . . Impact . | . . . . . . . Kinetic 8 | . . . . 8 . . Secondary 1 | . . . . 1 . . Self-Inflicted Damage 65 | . . . 65 . . . Shots 2 | . . . 2 . . . Rammed . | . . . . . . . Targets Rammed 1 | . . . . 1 . . Kicked 1 | . . . . 1 . . Crushed . | . . . . . . . Highest Temperature 520 | . 2 72 451 520 . . Average Temperature 136 | . 2 19 93 178 . . Received Heat Transfer 978 | . 180 87 450 234 . 27 Effects 19 | . . . 7 12 . . Shutdowns 2 | . . . . 2 . . Energy Bleed 3 | . . . 1 2 . . Interference 6 | . . . 4 2 . . Short Circuit 3 | . . . 1 2 . . Damage (minor) 2 | . . . 1 1 . . Damage (major) 3 | . . . . 3 . . Siege Activations . | . . . . . . . Robots Corrupted . | . . . . . . . Combat Hostiles . | . . . . . . . Parts Fried . | . . . . . . . Impact Corruptions . | . . . . . . . Robots Melted . | . . . . . . . Combat Hostiles . | . . . . . . . Parts Melted . | . . . . . . . Heat Transferred 1086 | . . 666 420 . . . Parts Sabotaged . | . . . . . . . Parts Stolen . | . . . . . . . Parts Stripped . | . . . . . . . Power Chain Reactions 1 | . . . 1 . . . Alert | -11 -10 -10 -8 -7 -6 -6 ------- Run | Yrd Mat Sub Mat Fac Fac DSF Peak Influence 458 | . 112 . 458 355 76 53 Initial 100 | . . . . 100 76 53 Average 163 | . 53 . 194 224 76 41 Maximum Alert Level 2 | . . . 2 1 . . Low Security (%) 56 | 100 100 . 44 35 100 100 Level 1 41 | . . . 51 64 . . Level 2 1 | . . . 4 . . . Level 3 . | . . . . . . . Level 4 . | . . . . . . . Level 5 . | . . . . . . . High Security . | . . . . . . . Max Security . | . . . . . . . Squads Dispatched 16 | . 1 . 8 5 . 2 Investigation 3 | . 1 . 1 1 . . Extermination 3 | . . . . 3 . . Reinforcement 4 | . . . 1 1 . 2 Assault . | . . . . . . . Garrison 6 | . . . 6 . . . Intercept . | . . . . . . . Searches Triggered . | . . . . . . . Construction Impeded 2 | . . . 1 1 . . Haulers Reinforced . | . . . . . . . Active Scanning Responses . | . . . . . . . Cargo Convoy Interrupts . | . . . . . . . Stealth | -11 -10 -10 -8 -7 -6 -6 --------- Run | Yrd Mat Sub Mat Fac Fac DSF Distress Signals . | . . . . . . . Communications Jammed . | . . . . . . . Distress Signals . | . . . . . . . Times Spotted 76 | . 12 8 30 21 . 5 Peak Tracking Total 7 | . 4 6 4 7 . 5 Tactical Retreats 3 | . . . . 3 . . Traps | -11 -10 -10 -8 -7 -6 -6 ------- Run | Yrd Mat Sub Mat Fac Fac DSF Traps Triggered 3 | . 1 . 1 . . 1 Indirectly . | . . . . . . . Trap Hack Attempts . | . . . . . . . Triggered . | . . . . . . . Disarmed . | . . . . . . . Reprogrammed . | . . . . . . . Reused . | . . . . . . . Traps Extracted . | . . . . . . . Installed . | . . . . . . . Triggered . | . . . . . . . Machines | -11 -10 -10 -8 -7 -6 -6 ---------- Run | Yrd Mat Sub Mat Fac Fac DSF Machines Disabled 6 | . . . 6 . . . Max in Single Turn 3 | . . . 3 . . . Machines Repaired . | . . . . . . . Machines Dismantled . | . . . . . . . Machines Sabotaged . | . . . . . . . Overloaded Fab Kills . | . . . . . . . Hacking | -11 -10 -10 -8 -7 -6 -6 --------- Run | Yrd Mat Sub Mat Fac Fac DSF Machines Accessed 11 | . 1 . 5 4 1 . Terminals 9 | . 1 . 4 3 1 . Fabricators . | . . . . . . . Repair Stations 1 | . . . . 1 . . Recycling Units . | . . . . . . . Scanalyzers 1 | . . . 1 . . . Garrison Access . | . . . . . . . Total Hacks 56 | . 6 . 37 12 1 . Successful 30 | . 4 . 20 5 1 . Failed 26 | . 2 . 17 7 . . Catastrophic 2 | . . . 2 . . . Database Lockouts . | . . . . . . . Manual . | . . . . . . . Terminals 43 | . 6 . 26 10 1 . Fabricators . | . . . . . . . Repair Stations 2 | . . . . 2 . . Recycling Units . | . . . . . . . Scanalyzers 11 | . . . 11 . . . Garrison Access . | . . . . . . . Terminal Hacks 21 | . 4 . 12 4 1 . Record 8 | . 1 . 7 . . . Open DSF 2 | . . . . 1 1 . Scanalyzer Index 1 | . . . 1 . . . Alert Level 1 | . . . 1 . . . Unreport Threat 2 | . . . 2 . . . Maintenance Status 1 | . . . . 1 . . Transport Status 1 | . . . . 1 . . Investigation Status 1 | . 1 . . . . . Recall Investigation 3 | . 2 . 1 . . . Zone Layout 1 | . . . . 1 . . Fabricator Hacks . | . . . . . . . Repair Station Hacks 1 | . . . . 1 . . Scan Component 1 | . . . . 1 . . Recycling Unit Hacks . | . . . . . . . Scanalyzer 8 | . . . 8 . . . Insert Component 4 | . . . 4 . . . Analyze 4 | . . . 4 . . . Garrison Access Hacks . | . . . . . . . Unauthorized Hacks . | . . . . . . . Terminals . | . . . . . . . Fabricators . | . . . . . . . Repair Stations . | . . . . . . . Recycling Units . | . . . . . . . Scanalyzers . | . . . . . . . Garrison Access . | . . . . . . . Data Cores Recovered 2 | . . . 1 1 . . Used . | . . . . . . . Hacking Detections 9 | . 1 . 5 3 . . Full Trace Events 2 | . . . 1 1 . . Feedback Events . | . . . . . . . Feedback Blocked . | . . . . . . . Robot Schematics Acquired . | . . . . . . . Robots Built . | . . . . . . . Authchips . | . . . . . . . Time . | . . . . . . . Total Robot Build Rating . | . . . . . . . Part Schematics Acquired 4 | . . . 4 . . . Parts Built . | . . . . . . . Authchips . | . . . . . . . Time . | . . . . . . . Total Part Build Rating . | . . . . . . . Parts Repaired . | . . . . . . . Time . | . . . . . . . Parts Recycled . | . . . . . . . Recycled Matter . | . . . . . . . Retrieved Matter . | . . . . . . . Retrieved Components . | . . . . . . . Parts Scanalyzed 4 | . . . 4 . . . Part Schematics Acquired 4 | . . . 4 . . . Parts Damaged . | . . . . . . . Bothacking | -11 -10 -10 -8 -7 -6 -6 ------------ Run | Yrd Mat Sub Mat Fac Fac DSF Used RIF Installer . | . . . . . . . Robots Hacked . | . . . . . . . Non-combat . | . . . . . . . Combat . | . . . . . . . Robot Hacks Applied . | . . . . . . . Relay Couplers Released . | . . . . . . . Fabnet Peak Effective % . | . . . . . . . Robots Rewired . | . . . . . . . Allies Hacked . | . . . . . . . Hacks Repelled . | . . . . . . . Allies | -11 -10 -10 -8 -7 -6 -6 -------- Run | Yrd Mat Sub Mat Fac Fac DSF Total Allies . | . . . . . . . Largest Group . | . . . . . . . Highest-Rated Group . | . . . . . . . Highest-Rated Ally . | . . . . . . . Total Orders . | . . . . . . . Ally Attacks . | . . . . . . . Total Damage . | . . . . . . . Kills . | . . . . . . . Allies Corrupted . | . . . . . . . Allies Melted . | . . . . . . . Intel | -11 -10 -10 -8 -7 -6 -6 ------- Run | Yrd Mat Sub Mat Fac Fac DSF Robot Analysis Total . | . . . . . . . Derelict Logs Recovered 2 | . . 2 . . . . Drone Launches . | . . . . . . . Drone Recoveries . | . . . . . . . Exploration | -11 -10 -10 -8 -7 -6 -6 ------------- Run | Yrd Mat Sub Mat Fac Fac DSF Turns Passed 3989 | 88 595 791 1336 981 135 63 Spaces Moved 2375 | 68 317 535 619 683 110 43 Core 253 | 7 . 106 140 . . . Treads . | . . . . . . . Legs 2122 | 61 317 429 479 683 110 43 Wheels . | . . . . . . . Hover . | . . . . . . . Flight . | . . . . . . . Fastest Speed 50 | 50 120 120 120 120 120 120 Average Speed 134 | 112 120 135 161 120 120 120 Slowest Speed 400 | 120 120 200 400 190 120 120 Overloaded Moves . | . . . . . . . Propulsion Burnouts . | . . . . . . . Robots Hopped . | . . . . . . . Cave-ins Triggered . | . . . . . . . Exploration Rate (%) 24 | 6 39 24 40 10 3 48 Regions Visited 6 Branch Regions 1 Pre-discovered Areas . | . . . . . . . Known Exits Taken 3 | . . 1 1 . 1 . Unknown Exits Taken 3 | 1 1 . . 1 . . Scrap Searched 4 | . . 4 . . . . Spaces Dug . | . . . . . . . Terrain Destroyed 187 | . . . 183 4 . . Melee . | . . . . . . . Projectile 10 | . . . 6 4 . . AOE 177 | . . . 177 . . . Terrain Rammed . | . . . . . . . Walls Destroyed . | . . . . . . . Machines Disabled . | . . . . . . . Actions | -11 -10 -10 -8 -7 -6 -6 --------- Run | Yrd Mat Sub Mat Fac Fac DSF Total 2870 | 79 479 563 826 759 113 51 Wait 184 | . 114 . 66 4 . . Move 2370 | 67 316 534 618 682 110 43 Hop . | . . . . . . . Pick Up 45 | 7 6 4 17 9 2 . Fast Attach 19 | . 4 . 15 . . . Attach 30 | 5 1 1 12 9 1 1 Detach . | . . . . . . . Swap 14 | . 5 2 3 4 . . Drop 38 | . 7 3 21 7 . . Fire 165 | . 26 19 74 43 . 3 Melee . | . . . . . . . Ram . | . . . . . . . Kick 1 | . . . . 1 . . Crush . | . . . . . . . Escape Stasis . | . . . . . . . Rewire 4 | . . . . . . 4 Trap . | . . . . . . . Miscellaneous . | . . . . . . . Route ------- -11/Scrapyard -10/Materials (discovered 2 exits: [*Mat] / [*Sub]) -10/Subcaves (discovered 2 exits: *Mat x2) -8/Materials (discovered 2 exits: *Fac x2) -7/Factory -6/Factory -6/DSF History --------- Turn | Location | Event 4 | -11/Scrapyard | Discovered new exit (range 14) 89 | -11/Scrapyard | Entered Materials 213 | -10/Materials | Discovered new exit (range 13) 266 | -10/Materials | Discovered new exit (range 7) 303 | -10/Materials | Build established: Mutant 684 | -10/Materials | Entered Subcaves 849 | -10/Subcaves | Learned 2 Materials zone layouts 911 | -10/Subcaves | Identified exit to Materials 1030 | -10/Subcaves | Shifting Twisted Machinery released Battle Rifle 1142 | -10/Subcaves | Core integrity fell below 50% 1451 | -10/Subcaves | Discovered exit to Materials (range 8) 1475 | -10/Subcaves | Entered Materials 1475 | -8/Materials | Evolved 4 slots: Propulsion x2, Utility x1, Weapon x1 1476 | -8/Materials | Identified exit to Factory 1652 | -8/Materials | Garrison activated, responded to threat 2005 | -8/Materials | Garrison activated, responded to threat 2217 | -8/Materials | Build established: Skirmisher 2737 | -8/Materials | Build established: Scavenger-Gunner 2737 | -8/Materials | Discovered exit to Factory (range 5) 2811 | -8/Materials | Entered Factory 2811 | -7/Factory | Evolved 2 slots: Utility x2 2850 | -7/Factory | Identified exit to DSF 3140 | -7/Factory | Discovered new exit (range 5) 3391 | -7/Factory | Build established: Tank 3792 | -7/Factory | Entered another Factory area 3792 | -6/Factory | Evolved 2 slots: Utility x1, Weapon x1 3927 | -6/Factory | Identified exit to DSF 3927 | -6/Factory | Entered DSF 3952 | -6/DSF | Additional patrols routed to DSF 3990 | -6/DSF | Self-destructed Last Messages --------------- A-15 Conveyor is unpowered. Attempting to rewire A-15 Conveyor. A-15 Conveyor is unpowered. Imp. Carbon-fiber Leg destroyed. H-61 Shepherd calls for reinforcements. ALERT: Hostile activity reported, dispatching reinforcements to area. Penetrated by Slug. Targeting Computer destroyed. Critical hit (Blast). Critical hit (Burn: +37). Hpw. Shotgun destroyed. Attempting to rewire A-15 Conveyor. A-15 Conveyor is unpowered. Penetrated by Slug. Carbon-fiber Leg destroyed. Knocked back. Weapon Cycler destroyed. Penetrated by Slug. [Achievement: 5k Club] Map ----- +----------------------------------------------------+ | ????????????????????????????????????????????? | | ????????????????????????????????????????????? | | ?????????###????????????????????????????????? | | ?????????""#????????????????????????????????? | | ?????????#"#????????????????????????????????? | | ??????####"##?????????#######???????????????? | | ??????#"""""######### !!! #???????????????? | | ??????#"""""##!!#!!!# !!! #!!!#!!#????????? | | ???#"##"" ?????? | | ???#""""" ?????? | | ???####"" ##!!#!!!### ###!!!#???????????? | | ??????### ###!!#!!!#?????##????????????????? | | ???????## ##########????? ????????????????? | | ???????#! #??????????? ?????????????????? | | ???????#! #??????????? ?????????????????? | | ???????## ###?????????? ###???????????????? | | ???????#! #?????????? !!#???????????????? | | ???????#! #?????????? !!#???????????????? | | ???????#! #????????? !!????????????????? | | ??????### ##########?? #?????????????????? | | ??????# ##!!!#!!!#?# ##???=#???????????? | | ??????# ##!!!#!!!##A A##===#!!!##??????? | | ??????#!! x % ????? | | ??????#!! x % H ????? | | ?????#"!! xx % ????? | | ?????## ##!!!#]]]@;A A##!!!#???????????? | | ??????# ##!!!;]]]### ##????????????????? | | ??????##########;####?? #?????????????????? | | ???????????????????????? [[????????????????? | | ????????????????????????? [[#???????????????? | | ??????????????????????????[[#???????????????? | | ??????????????????????????###???????????????? | | ????????????????????????????????????????????? | | ????????????????????????????????????????????? | | ????????????????????????????????????????????? | | ????????????????????????????????????????????? | | ????????????????????????????????????????????? | | ????????????????????????????????????????????? | | ????????????????????????????????????????????? | | ????????????????????????????????????????????? | | ????????????????????????????????????????????? | | ????????????????????????????????????????????? | | ????????????????????????????????????????????? | | ????????????????????????????????????????????? | | ????????????????????????????????????????????? | | ????????????????????????????????????????????? | | ????????????????????????????????????????????? | | ????????????????????????????????????????????? | | ????????????????????????????????????????????? | | | +----------------------------------------------------+ Best States ------------- Heat Dissipation 37 Energy Generation 15 Energy Capacity 250 Matter Stores 300 Matter Capacity 300 Sight Range 20 Terrain Scan Range 14 Terrain Scan Density 10 Armor Coverage 300 Resistance: KI 10 Weapon Cycling 15 Evasion (%) 55 Targeting Accuracy 5 Defensive Hacking 11 Item Schematics ----------------- Lgt. EM Pulse Cannon | -8/Materials | Scanalyzed Beam Cannon | -8/Materials | Scanalyzed Terrain Scanner | -8/Materials | Scanalyzed Sml. Storage Unit | -8/Materials | Scanalyzed Robot Schematics ------------------ None Fabricated ------------ Nothing Alien Tech Used ----------------- None Achievements -------------- 5k Club Oops Please Form A Line Risk Taker Storm Trooper Challenges ------------ None Game ------ Seed LauncherHypercooledScrap Manual? 0 Play Time 00:52:55 Cumulative 3.2 hours Start 2024.04.02 @ 12:59:31 End 2024.04.03 @ 11:04:14 Sessions 7 Manual Loads 0 Difficulty Rogue Special Mode None Game No. 4 Rogue 1 Adventurer 3 Explorer 0 Win Type - Total 0 Types 0/0/0/0/0/0/0/0/0 Lore% 7 Gallery% 6 Achievement% 7 Wizard Run 0 Options --------- Layout 1 ASCII 0 Keyboard 0 Movement Mouse Keybinds 0 Fullscreen 1 Font 48/Smallcaps Map View 50x35 Zoom Use 0% Tactical HUD 0 Map Filters NONE Filters NONE Steam 1 RUN: d68141c1-bb0e-4189-ac83-ef689c865b75